[Event "Josef Kupper Memorial 2019"]
[Site "Zurich"]
[Date "2019.08.17"]
[Round "6.9"]
[White "Bogner, Sebastian"]
[Black "Harsha Bharathakoti"]
[Result "1/2-1/2"]
[ECO "D38"]
[WhiteElo "2569"]
[BlackElo "2489"]
[Annotator "ChessBase"]
[PlyCount "77"]
[EventDate "2019.08.14"]
[EventType "swiss"]
[EventCountry "SUI"]
[SourceTitle "playchess.com"]
[Source "ChessBase"]
[SourceQuality "1"]
[TimeControl "40/5400+30:1800+30"]

1. d4 {[%emt 0:01:52]} Nf6 {[%emt 0:00:13]} 2. c4 {[%emt 0:00:12]} e6 {[%emt 0:00:14]} 3. Nf3 {[%emt 0:00:34]} d5 {[%emt 0:00:21]} 4. Nc3 {[%emt 0:00:22]} Bb4 {[%emt 0:00:56]} 5. Qa4+ {[%emt 0:10:38]} Nc6 {[%emt 0:00:22]} 6. Bg5 {[%emt 0:02:33]} dxc4 {[%emt 0:08:19]} 7. e4 {[%emt 0:16:41]} Bd7 {[%emt 0:14:33]} 8. Qc2 {[%emt 0:01:10]} h6 {[%emt 0:12:03]} 9. Bd2 {[%emt 0:05:54]} b5 {[%emt 0:03:41]} 10. Nxb5 {[%emt 0:04:33]} Bxd2+ {[%emt 0:00:26]} 11. Nxd2 {[%emt 0:05:33]} a6 {[%emt 0:05:29]} 12. Na3 {[%emt 0:01:20]} Nxd4 {[%emt 0:00:17]} 13. Qxc4 {[%emt 0:00:59]} Bb5 {[%emt 0:06:23]} 14. Qc5 {[%emt 0:04:10]} Qd6 {[%emt 0:03:11]} 15. Rc1 {[%emt 0:01:45]} O-O {[%emt 0:01:35]} 16. f3 {[%emt 0:09:36]} Rfc8 {[%emt 0:14:12]} 17. Rc3 {[%emt 0:03:18]} e5 {[%emt 0:15:33]} 18. Kf2 {[%emt 0:05:20]} Qe6 {[%emt 0:06:01]} 19. Nb3 {[%emt 0:04:14]} Nxb3 {[%emt 0:03:32]} 20. axb3 {[%emt 0:03:44]} Rd8 {[%emt 0:00:03]} 21. Qe3 {[%emt 0:03:10]} Rd1 {[%emt 0:00:59]} 22. Rg1 {[%emt 0:04:11]} Bxf1 {[%emt 0:01:57]} 23. Rxf1 {[%emt 0:00:12]} Rxf1+ {[%emt 0:00:34]} 24. Kxf1 {[%emt 0:00:01]} Rb8 {[%emt 0:00:03]} 25. Nc4 {[%emt 0:01:24]} Rb5 {[%emt 0:00:05]} 26. Nd2 {[%emt 0:02:56]} Ne8 {[%emt 0:00:40]} 27. Qd3 {[%emt 0:01:55]} Kh7 {[%emt 0:01:11]} 28. Qc4 {[%emt 0:00:45]} Qd7 {[%emt 0:00:17]} 29. Ke2 {[%emt 0:00:51]} Rb6 {[%emt 0:00:33]} 30. Rd3 {[%emt 0:00:57]} Qe7 {[%emt 0:00:44]} 31. g3 {[%emt 0:01:19]} Nd6 {[%emt 0:00:19]} 32. Qc5 {[%emt 0:00:30]} Qe6 {[%emt 0:00:31]} 33. Kf2 {[%emt 0:01:28]} Qe7 {[%emt 0:00:39]} 34. Rc3 {[%emt 0:00:56]} Qg5 {[%emt 0:00:22]} 35. Qe3 {[%emt 0:00:53]} Qe7 {[%emt 0:00:33]} 36. Qc5 {[%emt 0:00:14]} Qg5 {[%emt 0:00:03]} 37. Qe3 {[%emt 0:00:36]} Qe7 {[%emt 0:00:15]} 38. Qc5 {[%emt 0:01:23]} Qg5 {[%emt 0:00:12]} 39. Qe3 {[%emt 0:00:42]} 1/2-1/2

[Event "Josef Kupper Memorial 2019"]
[Site "Zurich"]
[Date "2019.08.17"]
[Round "6.10"]
[White "Theodorou, Nikolas"]
[Black "Arjun Kalyan"]
[Result "1-0"]
[ECO "E04"]
[WhiteElo "2548"]
[BlackElo "2482"]
[Annotator "ChessBase"]
[PlyCount "75"]
[EventDate "2019.08.14"]
[EventType "swiss"]
[EventCountry "SUI"]
[SourceTitle "playchess.com"]
[Source "ChessBase"]
[SourceQuality "1"]
[TimeControl "40/5400+30:1800+30"]

1. d4 {[%emt 0:01:00]} d5 {[%emt 0:00:00]} 2. c4 {[%emt 0:00:04]} e6 {[%emt 0:00:00]} 3. Nf3 {[%emt 0:00:20]} Nf6 {[%emt 0:00:04]} 4. g3 {[%emt 0:00:03]} dxc4 {[%emt 0:00:26]} 5. Bg2 {[%emt 0:00:03]} Nc6 {[%emt 0:00:18]} 6. O-O {[%emt 0:00:16]} Rb8 {[%emt 0:00:21]} 7. b3 {[%emt 0:01:09]} cxb3 {[%emt 0:02:59]} 8. axb3 {[%emt 0:00:06]} a6 {[%emt 0:08:57]} 9. Bb2 {[%emt 0:01:01]} Be7 {[%emt 0:01:31]} 10. Nbd2 {[%emt 0:04:19]} O-O {[%emt 0:00:23]} 11. Nc4 {[%emt 0:01:07]} Nd5 {[%emt 0:14:58]} 12. e4 {[%emt 0:02:25]} Ndb4 {[%emt 0:01:50]} 13. Ne3 {[%emt 0:00:04]} b6 {[%emt 0:06:15]} 14. h4 {[%emt 0:03:28]} Na5 {[%emt 0:05:16]} 15. h5 {[%emt 0:04:42]} h6 {[%emt 0:01:45]} 16. Ne5 {[%emt 0:08:18]} c5 {[%emt 0:05:06]} 17. d5 {[%emt 0:00:09]} exd5 {[%emt 0:04:20]} 18. exd5 {[%emt 0:01:16]} Re8 {[%emt 0:03:10]} 19. Re1 {[%emt 0:05:05]} Bf6 {[%emt 0:02:10]} 20. f4 {[%emt 0:02:02]} Nb7 {[%emt 0:11:41]} 21. Nc2 {[%emt 0:04:19]} Bg4 {[%emt 0:07:25]} 22. Qd2 {[%emt 0:06:58]} Bxe5 {[%emt 0:02:27]} 23. fxe5 {[%emt 0:00:37]} Nxc2 {[%emt 0:02:13]} 24. Qxc2 {[%emt 0:00:03]} Bxh5 {[%emt 0:00:26]} 25. Rxa6 {[%emt 0:02:16]} f6 {[%emt 0:03:35]} 26. Qf5 {[%emt 0:03:35]} g6 {[%emt 0:02:30]} 27. Qb1 {[%emt 0:00:38]} Qc7 {[%emt 0:02:56]} 28. g4 {[%emt 0:12:17]} Bxg4 {[%emt 0:00:12]} 29. Qxg6+ {[%emt 0:00:05]} Qg7 {[%emt 0:00:07]} 30. Qxg7+ {[%emt 0:00:03]} Kxg7 {[%emt 0:00:02]} 31. Rxb6 {[%emt 0:00:08]} Na5 {[%emt 0:00:59]} 32. exf6+ {[%emt 0:00:14]} Kf7 {[%emt 0:00:14]} 33. Rxe8 {[%emt 0:01:36]} Rxb6 {[%emt 0:00:25]} 34. Re7+ {[%emt 0:01:03]} Kf8 {[%emt 0:00:01]} 35. Be5 {[%emt 0:01:28]} Nxb3 {[%emt 0:00:30]} 36. d6 {[%emt 0:01:28]} Nd4 {[%emt 0:01:10]} 37. d7 {[%emt 0:00:17]} Rb1+ {[%emt 0:00:25]} 38. Kh2 {[%emt 0:00:06]} 1-0

[Event "Josef Kupper Memorial 2019"]
[Site "Zurich"]
[Date "2019.08.17"]
[Round "6.11"]
[White "Sukandar, Irine Kharisma"]
[Black "Puranik, Abhimanyu"]
[Result "1/2-1/2"]
[ECO "C44"]
[WhiteElo "2385"]
[BlackElo "2550"]
[Annotator "ChessBase"]
[PlyCount "58"]
[EventDate "2019.08.14"]
[EventType "swiss"]
[EventCountry "SUI"]
[SourceTitle "playchess.com"]
[Source "ChessBase"]
[SourceQuality "1"]
[TimeControl "40/5400+30:1800+30"]

1. e4 {[%emt 0:00:00]} e5 {[%emt 0:00:00]} 2. Nf3 {[%emt 0:00:00]} Nc6 {[%emt 0:00:00]} 3. d4 {[%emt 0:00:10]} exd4 {[%emt 0:00:00]} 4. Nxd4 {[%emt 0:00:08]} Qf6 {[%emt 0:00:00]} 5. Nb3 {[%emt 0:01:56]} Qg6 {[%emt 0:00:13]} 6. f3 {[%emt 0:00:39]} Bd6 {[%emt 0:02:45]} 7. Nc3 {[%emt 0:00:26]} Nge7 {[%emt 0:03:03]} 8. g3 {[%emt 0:00:30]} O-O {[%emt 0:03:07]} 9. Bg2 {[%emt 0:00:23]} Be5 {[%emt 0:02:41]} 10. O-O {[%emt 0:00:40]} Bxc3 {[%emt 0:00:42]} 11. bxc3 {[%emt 0:00:06]} d6 {[%emt 0:00:02]} 12. Nd4 {[%emt 0:01:57]} Bd7 {[%emt 0:06:30]} 13. f4 {[%emt 0:02:35]} f6 {[%emt 0:04:53]} 14. Qd3 {[%emt 0:11:38]} Rfe8 {[%emt 0:09:49]} 15. Bd2 {[%emt 0:06:07]} Rad8 {[%emt 0:10:10]} 16. Rab1 {[%emt 0:04:07]} b6 {[%emt 0:01:18]} 17. Nb5 {[%emt 0:05:30]} Rc8 {[%emt 0:01:11]} 18. c4 {[%emt 0:00:44]} Qh5 {[%emt 0:02:28]} 19. Nc3 {[%emt 0:09:24]} Nb4 {[%emt 0:05:42]} 20. Rxb4 {[%emt 0:07:48]} Qc5+ {[%emt 0:00:05]} 21. Kh1 {[%emt 0:00:21]} Qxb4 {[%emt 0:00:12]} 22. e5 {[%emt 0:00:31]} f5 {[%emt 0:11:49]} 23. Re1 {[%emt 0:13:07]} Qc5 {[%emt 0:02:20]} 24. Be3 {[%emt 0:06:54]} Qa3 {[%emt 0:00:59]} 25. Bc1 {[%emt 0:03:28]} Qa5 {[%emt 0:02:09]} 26. Bd2 {[%emt 0:00:36]} Qc5 {[%emt 0:07:13]} 27. Be3 {[%emt 0:04:59]} Qa3 {[%emt 0:01:44]} 28. Bc1 {[%emt 0:01:08]} Qb4 {[%emt 0:00:03]} 29. Bd2 {[%emt 0:00:29]} Qc5 {[%emt 0:10:42]} 1/2-1/2

[Event "Josef Kupper Memorial 2019"]
[Site "Zurich"]
[Date "2019.08.17"]
[Round "6.12"]
[White "Florescu, Codrut-Constantin"]
[Black "Chandra, Akshat"]
[Result "0-1"]
[ECO "A45"]
[WhiteElo "2314"]
[BlackElo "2528"]
[Annotator "ChessBase"]
[PlyCount "70"]
[EventDate "2019.08.14"]
[EventType "swiss"]
[EventCountry "SUI"]
[SourceTitle "playchess.com"]
[Source "ChessBase"]
[SourceQuality "1"]
[TimeControl "40/5400+30:1800+30"]

1. d4 {[%emt 0:00:00]} Nf6 {[%emt 0:02:06]} 2. Bf4 {[%emt 0:00:00]} c5 {[%emt 0:00:33]} 3. d5 {[%emt 0:00:05]} d6 {[%emt 0:00:08]} 4. Nc3 {[%emt 0:00:37]} a6 {[%emt 0:00:08]} 5. e4 {[%emt 0:08:55]} b5 {[%emt 0:01:32]} 6. Nf3 {[%emt 0:01:21]} b4 {[%emt 0:02:41]} 7. Na4 {[%emt 0:00:05]} Bd7 {[%emt 0:04:49]} 8. b3 {[%emt 0:07:06]} Bxa4 {[%emt 0:00:09]} 9. bxa4 {[%emt 0:00:04]} Nxe4 {[%emt 0:00:10]} 10. Bc4 {[%emt 0:01:56]} g6 {[%emt 0:01:06]} 11. O-O {[%emt 0:00:27]} Bg7 {[%emt 0:01:08]} 12. Qd3 {[%emt 0:04:39]} Nc3 {[%emt 0:06:28]} 13. Rae1 {[%emt 0:05:59]} O-O {[%emt 0:01:26]} 14. Ng5 {[%emt 0:02:15]} Nd7 {[%emt 0:01:54]} 15. h4 {[%emt 0:07:38]} Nf6 {[%emt 0:01:47]} 16. Re3 {[%emt 0:04:40]} Qd7 {[%emt 0:03:48]} 17. Rfe1 {[%emt 0:00:31]} Rae8 {[%emt 0:01:57]} 18. Rh3 {[%emt 0:14:07]} Qf5 {[%emt 0:02:08]} 19. Qxf5 {[%emt 0:01:08]} gxf5 {[%emt 0:00:04]} 20. Rd3 {[%emt 0:00:06]} a5 {[%emt 0:09:44]} 21. Bc1 {[%emt 0:03:41]} Ng4 {[%emt 0:08:12]} 22. Nf3 {[%emt 0:04:33]} Nxa4 {[%emt 0:01:58]} 23. Bb5 {[%emt 0:00:28]} Nc3 {[%emt 0:00:02]} 24. Bxe8 {[%emt 0:00:20]} Rxe8 {[%emt 0:00:02]} 25. Bg5 {[%emt 0:14:29]} Kf8 {[%emt 0:05:51]} 26. h5 {[%emt 0:00:06]} h6 {[%emt 0:11:18]} 27. Bd2 {[%emt 0:04:09]} Ne4 {[%emt 0:06:17]} 28. Be3 {[%emt 0:00:14]} c4 {[%emt 0:00:20]} 29. Rdd1 {[%emt 0:00:19]} Nc3 {[%emt 0:01:04]} 30. Rd2 {[%emt 0:01:53]} Nxe3 {[%emt 0:01:42]} 31. fxe3 {[%emt 0:02:36]} Nxa2 {[%emt 0:00:44]} 32. Nd4 {[%emt 0:00:04]} a4 {[%emt 0:01:12]} 33. Rb1 {[%emt 0:06:37]} a3 {[%emt 0:03:35]} 34. c3 {[%emt 0:01:07]} Nxc3 {[%emt 0:00:42]} 35. Rxb4 {[%emt 0:00:05]} Bxd4 {[%emt 0:00:14]} 0-1

[Event "Josef Kupper Memorial 2019"]
[Site "Zurich"]
[Date "2019.08.17"]
[Round "6.13"]
[White "Tan, Justin"]
[Black "Fischer, Daniel"]
[Result "1-0"]
[ECO "A40"]
[WhiteElo "2503"]
[BlackElo "2288"]
[Annotator "ChessBase"]
[PlyCount "67"]
[EventDate "2019.08.14"]
[EventType "swiss"]
[EventCountry "SUI"]
[SourceTitle "playchess.com"]
[Source "ChessBase"]
[SourceQuality "1"]
[TimeControl "40/5400+30:1800+30"]

1. d4 {[%emt 0:00:00]} Nf6 {[%emt 0:00:00]} 2. c4 {[%emt 0:00:00]} e6 {[%emt 0:00:00]} 3. g3 {[%emt 0:00:18]} c5 {[%emt 0:00:26]} 4. Nf3 {[%emt 0:01:09]} cxd4 {[%emt 0:00:33]} 5. Nxd4 {[%emt 0:00:04]} d5 {[%emt 0:00:11]} 6. Bg2 {[%emt 0:00:34]} e5 {[%emt 0:00:29]} 7. Nf3 {[%emt 0:04:13]} d4 {[%emt 0:00:13]} 8. O-O {[%emt 0:00:05]} Nc6 {[%emt 0:00:13]} 9. Bg5 {[%emt 0:00:46]} Be7 {[%emt 0:00:50]} 10. Na3 {[%emt 0:01:31]} Be6 {[%emt 0:03:51]} 11. Nd2 {[%emt 0:03:21]} h6 {[%emt 0:07:48]} 12. Bxf6 {[%emt 0:00:52]} Bxf6 {[%emt 0:00:05]} 13. Qa4 {[%emt 0:04:32]} Qd7 {[%emt 0:04:48]} 14. b4 {[%emt 0:02:48]} a5 {[%emt 0:12:04]} 15. b5 {[%emt 0:02:23]} Nb4 {[%emt 0:01:01]} 16. c5 {[%emt 0:05:33]} Bd5 {[%emt 0:01:19]} 17. Nac4 {[%emt 0:02:39]} Bxg2 {[%emt 0:01:48]} 18. Kxg2 {[%emt 0:02:02]} Qd5+ {[%emt 0:03:51]} 19. Kg1 {[%emt 0:00:14]} Qxc5 {[%emt 0:03:02]} 20. Ne4 {[%emt 0:01:07]} Qe7 {[%emt 0:01:11]} 21. Ncd6+ {[%emt 0:12:31]} Kf8 {[%emt 0:00:58]} 22. Qb3 {[%emt 0:02:40]} Qe6 {[%emt 0:06:27]} 23. Qxe6 {[%emt 0:02:23]} fxe6 {[%emt 0:00:05]} 24. Nxb7 {[%emt 0:03:26]} Ke7 {[%emt 0:12:01]} 25. Rfc1 {[%emt 0:01:51]} Nd5 {[%emt 0:02:36]} 26. a4 {[%emt 0:04:42]} Ra7 {[%emt 0:03:23]} 27. Nbd6 {[%emt 0:05:00]} Kd7 {[%emt 0:00:52]} 28. Rc6 {[%emt 0:02:17]} Rc7 {[%emt 0:06:26]} 29. Rac1 {[%emt 0:02:07]} Rb8 {[%emt 0:05:49]} 30. Rxc7+ {[%emt 0:03:58]} Nxc7 {[%emt 0:00:06]} 31. Rc6 {[%emt 0:00:27]} Nd5 {[%emt 0:03:57]} 32. Nc5+ {[%emt 0:00:40]} Ke7 {[%emt 0:00:16]} 33. Nc4 {[%emt 0:00:13]} Nc3 {[%emt 0:02:12]} 34. Rc7+ {[%emt 0:00:16]} 1-0

[Event "Josef Kupper Memorial 2019"]
[Site "Zurich"]
[Date "2019.08.17"]
[Round "6.14"]
[White "Beerdsen, Thomas"]
[Black "Kiremitciyan, Ari"]
[Result "1-0"]
[ECO "C10"]
[WhiteElo "2491"]
[BlackElo "2276"]
[Annotator "ChessBase"]
[PlyCount "101"]
[EventDate "2019.08.14"]
[EventType "swiss"]
[EventCountry "SUI"]
[SourceTitle "playchess.com"]
[Source "ChessBase"]
[SourceQuality "1"]
[TimeControl "40/5400+30:1800+30"]

1. e4 {[%emt 0:03:44]} e6 {[%emt 0:00:00]} 2. d4 {[%emt 0:02:20]} d5 {[%emt 0:00:00]} 3. Nd2 {[%emt 0:00:39]} dxe4 {[%emt 0:00:00]} 4. Nxe4 {[%emt 0:00:05]} Bd7 {[%emt 0:00:00]} 5. Nf3 {[%emt 0:05:30]} Bc6 {[%emt 0:00:00]} 6. Ned2 {[%emt 0:00:25]} Nd7 {[%emt 0:00:56]} 7. Nc4 {[%emt 0:02:14]} Ngf6 {[%emt 0:01:20]} 8. Be2 {[%emt 0:06:37]} Be7 {[%emt 0:00:54]} 9. O-O {[%emt 0:00:45]} Bxf3 {[%emt 0:04:52]} 10. Bxf3 {[%emt 0:00:05]} c6 {[%emt 0:00:06]} 11. Bf4 {[%emt 0:02:43]} O-O {[%emt 0:00:34]} 12. Bg3 {[%emt 0:04:02]} Nb6 {[%emt 0:03:14]} 13. Ne5 {[%emt 0:04:05]} Nfd7 {[%emt 0:00:41]} 14. Nd3 {[%emt 0:00:38]} Bh4 {[%emt 0:00:22]} 15. Bd6 {[%emt 0:02:59]} Be7 {[%emt 0:00:02]} 16. Bg3 {[%emt 0:01:22]} Bh4 {[%emt 0:00:03]} 17. Bd6 {[%emt 0:00:06]} Be7 {[%emt 0:00:02]} 18. Bxe7 {[%emt 0:00:05]} Qxe7 {[%emt 0:00:05]} 19. c3 {[%emt 0:03:07]} Rfe8 {[%emt 0:03:42]} 20. Re1 {[%emt 0:02:05]} Qd6 {[%emt 0:01:51]} 21. a4 {[%emt 0:03:16]} a5 {[%emt 0:01:09]} 22. Qb3 {[%emt 0:01:39]} Qc7 {[%emt 0:01:39]} 23. Re2 {[%emt 0:03:29]} Nf8 {[%emt 0:05:28]} 24. g3 {[%emt 0:01:34]} Rab8 {[%emt 0:02:07]} 25. Rae1 {[%emt 0:05:20]} Red8 {[%emt 0:01:17]} 26. h4 {[%emt 0:01:42]} Nbd7 {[%emt 0:00:29]} 27. Qa3 {[%emt 0:06:42]} Nf6 {[%emt 0:02:56]} 28. Ne5 {[%emt 0:03:14]} Nd5 {[%emt 0:03:00]} 29. Re4 {[%emt 0:05:39]} Qe7 {[%emt 0:06:19]} 30. Qb3 {[%emt 0:01:22]} Nf6 {[%emt 0:01:26]} 31. Rf4 {[%emt 0:01:18]} Ng6 {[%emt 0:02:48]} 32. Nxg6 {[%emt 0:00:05]} hxg6 {[%emt 0:00:02]} 33. Re5 {[%emt 0:03:03]} Qc7 {[%emt 0:02:24]} 34. h5 {[%emt 0:04:49]} gxh5 {[%emt 0:01:04]} 35. Rg5 {[%emt 0:03:24]} Nd5 {[%emt 0:07:33]} 36. Rh4 {[%emt 0:01:31]} Nf6 {[%emt 0:00:04]} 37. c4 {[%emt 0:04:57]} g6 {[%emt 0:02:45]} 38. Qc3 {[%emt 0:02:59]} Nh7 {[%emt 0:04:00]} 39. Rxa5 {[%emt 0:00:48]} Ra8 {[%emt 0:00:33]} 40. Re5 {[%emt 0:04:11]} Rxa4 {[%emt 0:11:18]} 41. Bxh5 {[%emt 0:05:46]} Qe7 {[%emt 0:07:01]} 42. Qe3 {[%emt 0:05:40]} Nf8 {[%emt 0:05:36]} 43. Be2 {[%emt 0:02:55]} Qf6 {[%emt 0:01:40]} 44. Ree4 {[%emt 0:02:34]} Ra1+ {[%emt 0:02:20]} 45. Kg2 {[%emt 0:00:14]} Rda8 {[%emt 0:04:13]} 46. Bd3 {[%emt 0:07:55]} Qg7 {[%emt 0:03:40]} 47. Rh3 {[%emt 0:02:13]} Rd8 {[%emt 0:01:23]} 48. Bc2 {[%emt 0:01:06]} Raa8 {[%emt 0:00:50]} 49. Reh4 {[%emt 0:01:12]} Ra1 {[%emt 0:04:02]} 50. Qf4 {[%emt 0:01:33]} Re1 {[%emt 0:01:44]} 51. Rh8+ {[%emt 0:00:08]} 1-0

[Event "Josef Kupper Memorial 2019"]
[Site "Zurich"]
[Date "2019.08.17"]
[Round "6.15"]
[White "Habibi, Ali"]
[Black "Karthik Venkataraman"]
[Result "0-1"]
[ECO "A00"]
[WhiteElo "2186"]
[BlackElo "2462"]
[Annotator "ChessBase"]
[PlyCount "120"]
[EventDate "2019.08.14"]
[EventType "swiss"]
[EventCountry "SUI"]
[SourceTitle "playchess.com"]
[Source "ChessBase"]
[SourceQuality "1"]
[TimeControl "40/5400+30:1800+30"]

1. a3 {[%emt 0:02:52]} g6 {[%emt 0:00:37]} 2. c4 {[%emt 0:00:09]} Bg7 {[%emt 0:00:08]} 3. Nf3 {[%emt 0:00:09]} d6 {[%emt 0:01:25]} 4. d4 {[%emt 0:00:13]} Nf6 {[%emt 0:00:05]} 5. Nc3 {[%emt 0:00:20]} O-O {[%emt 0:00:05]} 6. h3 {[%emt 0:00:08]} Nbd7 {[%emt 0:00:32]} 7. e3 {[%emt 0:00:09]} e5 {[%emt 0:00:28]} 8. Be2 {[%emt 0:00:07]} Re8 {[%emt 0:00:37]} 9. Qc2 {[%emt 0:00:29]} Qe7 {[%emt 0:03:04]} 10. O-O {[%emt 0:00:35]} e4 {[%emt 0:00:30]} 11. Nd2 {[%emt 0:00:04]} h5 {[%emt 0:00:42]} 12. Re1 {[%emt 0:01:44]} Nf8 {[%emt 0:00:29]} 13. Bf1 {[%emt 0:00:10]} Bf5 {[%emt 0:00:08]} 14. b4 {[%emt 0:01:39]} Ne6 {[%emt 0:00:27]} 15. Ne2 {[%emt 0:01:42]} h4 {[%emt 0:04:12]} 16. Bb2 {[%emt 0:00:20]} Ng5 {[%emt 0:03:21]} 17. Nf4 {[%emt 0:00:31]} Ngh7 {[%emt 0:00:09]} 18. Rac1 {[%emt 0:00:20]} c6 {[%emt 0:00:25]} 19. Qd1 {[%emt 0:10:13]} Rac8 {[%emt 0:06:56]} 20. f3 {[%emt 0:03:01]} exf3 {[%emt 0:03:49]} 21. Nxf3 {[%emt 0:02:10]} Ne4 {[%emt 0:00:35]} 22. c5 {[%emt 0:03:11]} d5 {[%emt 0:00:42]} 23. Ba1 {[%emt 0:03:01]} Ng3 {[%emt 0:06:23]} 24. Bd3 {[%emt 0:03:47]} Bxd3 {[%emt 0:03:10]} 25. Nxd3 {[%emt 0:01:39]} Nf8 {[%emt 0:02:02]} 26. Nde5 {[%emt 0:04:46]} Bf6 {[%emt 0:04:13]} 27. Qd3 {[%emt 0:03:24]} Nd7 {[%emt 0:00:44]} 28. Bb2 {[%emt 0:01:38]} a6 {[%emt 0:04:01]} 29. a4 {[%emt 0:00:21]} Ra8 {[%emt 0:00:35]} 30. a5 {[%emt 0:01:00]} Rad8 {[%emt 0:02:59]} 31. Rcd1 {[%emt 0:00:12]} Bg7 {[%emt 0:00:24]} 32. Rd2 {[%emt 0:04:31]} Nf6 {[%emt 0:01:02]} 33. Rc2 {[%emt 0:05:23]} Nfe4 {[%emt 0:01:22]} 34. Qb3 {[%emt 0:00:24]} Nf5 {[%emt 0:01:17]} 35. Ba1 {[%emt 0:11:17]} Qe6 {[%emt 0:01:44]} 36. Bb2 {[%emt 0:01:56]} Bf6 {[%emt 0:00:18]} 37. Ba1 {[%emt 0:00:45]} Rc8 {[%emt 0:00:12]} 38. Bb2 {[%emt 0:00:15]} Kg7 {[%emt 0:00:35]} 39. Qd3 {[%emt 0:00:27]} Bd8 {[%emt 0:00:23]} 40. Ba1 {[%emt 0:00:39]} f6 {[%emt 0:00:54]} 41. Ng4 {[%emt 0:30:01]} Bc7 {[%emt 0:30:18]} 42. Bb2 {[%emt 0:00:38]} Re7 {[%emt 0:00:11]} 43. Bc1 {[%emt 0:01:33]} Rce8 {[%emt 0:01:03]} 44. Rb2 {[%emt 0:02:09]} Qd7 {[%emt 0:01:12]} 45. Rc2 {[%emt 0:00:20]} Re6 {[%emt 0:00:20]} 46. Rb2 {[%emt 0:00:38]} Rh8 {[%emt 0:01:26]} 47. Rc2 {[%emt 0:00:11]} Bb8 {[%emt 0:00:27]} 48. Rb2 {[%emt 0:00:51]} Qc7 {[%emt 0:00:06]} 49. Rd1 {[%emt 0:00:33]} Rh5 {[%emt 0:03:14]} 50. Re2 {[%emt 0:00:36]} Nh6 {[%emt 0:00:25]} 51. Ngh2 {[%emt 0:00:32]} Ng3 {[%emt 0:05:09]} 52. Ree1 {[%emt 0:02:19]} Nf7 {[%emt 0:00:13]} 53. Ng4 {[%emt 0:00:57]} Ne4 {[%emt 0:01:00]} 54. Re2 {[%emt 0:02:45]} Nfg5 {[%emt 0:00:41]} 55. Nfh2 {[%emt 0:00:03]} Qg3 {[%emt 0:02:39]} 56. Kh1 {[%emt 0:00:01]} Nxh3 {[%emt 0:01:42]} 57. gxh3 {[%emt 0:00:10]} Qxh3 {[%emt 0:00:03]} 58. Rg2 {[%emt 0:01:35]} Rg5 {[%emt 0:00:19]} 59. Qc2 {[%emt 0:02:06]} Rxg4 {[%emt 0:03:16]} 60. Rxg4 {[%emt 0:05:08]} Bxh2 {[%emt 0:00:24]} 0-1

[Event "Josef Kupper Memorial 2019"]
[Site "Zurich"]
[Date "2019.08.17"]
[Round "6.16"]
[White "Krishna C R G"]
[Black "Doric, Nenad"]
[Result "1-0"]
[ECO "E04"]
[WhiteElo "2444"]
[BlackElo "2275"]
[Annotator "NA"]
[PlyCount "45"]
[EventDate "2019.08.14"]
[EventType "swiss"]
[EventCountry "SUI"]
[SourceTitle "playchess.com"]
[Source "ChessBase"]
[SourceQuality "1"]
[TimeControl "40/5400+30:1800+30"]

1. d4 {[%emt 0:00:00]} Nf6 {[%emt 0:01:44]} 2. c4 {[%emt 0:00:00]} e6 {[%emt 0:00:26]} 3. g3 {[%emt 0:00:00]} d5 {[%emt 0:00:34]} 4. Nf3 {[%emt 0:00:02]} dxc4 {[%emt 0:00:32]} 5. Bg2 {[%emt 0:00:04]} c5 {[%emt 0:00:25]} 6. O-O {[%emt 0:00:06]} Nc6 {[%emt 0:00:08]} 7. Qa4 {[%emt 0:00:05]} Bd7 {[%emt 0:00:17]} 8. Qxc4 {[%emt 0:00:06]} cxd4 {[%emt 0:03:30]} 9. Nxd4 {[%emt 0:00:04]} Rc8 {[%emt 0:00:23]} 10. Nc3 {[%emt 0:00:19]} Nxd4 {[%emt 0:02:09]} 11. Qxd4 {[%emt 0:00:03]} Bc5 {[%emt 0:00:30]} 12. Qh4 {[%emt 0:06:56]} O-O {[%emt 0:03:59]} 13. Rd1 {[%emt 0:12:50]} Qe7 {[%emt 0:16:15]} 14. Bg5 {[%emt 0:05:06]} Bc6 {[%emt 0:15:41]} 15. Bxc6 {[%emt 0:04:29]} Rxc6 {[%emt 0:01:24]} 16. Ne4 {[%emt 0:00:11]} e5 {[%emt 0:03:36]} 17. Nxf6+ {[%emt 0:00:12]} gxf6 {[%emt 0:04:25]} 18. Bh6 {[%emt 0:00:12]} Qe6 {[%emt 0:02:15]} 19. Bxf8 {[%emt 0:00:14]} Bxf8 {[%emt 0:00:26]} 20. Rac1 {[%emt 0:05:15]} Be7 {[%emt 0:05:42]} 21. Rxc6 {[%emt 0:02:00]} bxc6 {[%emt 0:01:06]} 22. Qa4 {[%emt 0:01:05]} Bc5 {[%emt 0:00:38]} 23. Rc1 {[%emt 0:04:20]} 1-0

[Event "Josef Kupper Memorial 2019"]
[Site "Zurich"]
[Date "2019.08.18"]
[Round "7.1"]
[White "Donchenko, Alexander"]
[Black "Tabatabaei, M.amin"]
[Result "0-1"]
[ECO "A40"]
[WhiteElo "2618"]
[BlackElo "2601"]
[Annotator "ChessBase"]
[PlyCount "68"]
[EventDate "2019.08.14"]
[EventType "swiss"]
[EventCountry "SUI"]
[SourceTitle "playchess.com"]
[Source "ChessBase"]
[SourceQuality "1"]
[TimeControl "40/5400+30:1800+30"]

1. d4 {[%emt 0:00:00]} e6 {[%emt 0:08:55]} 2. c4 {[%emt 0:00:29]} b6 {[%emt 0:00:26]} 3. e4 {[%emt 0:02:57]} Bb7 {[%emt 0:00:08]} 4. Nc3 {[%emt 0:02:44]} Bb4 {[%emt 0:00:08]} 5. f3 {[%emt 0:00:36]} e5 {[%emt 0:00:07]} 6. a3 {[%emt 0:04:17]} Bxc3+ {[%emt 0:02:14]} 7. bxc3 {[%emt 0:00:06]} Ne7 {[%emt 0:00:10]} 8. Bd3 {[%emt 0:02:14]} O-O {[%emt 0:00:20]} 9. Nh3 {[%emt 0:04:20]} f5 {[%emt 0:05:12]} 10. Qc2 {[%emt 0:14:25]} f4 {[%emt 0:08:41]} 11. g3 {[%emt 0:05:30]} Ng6 {[%emt 0:03:21]} 12. Qf2 {[%emt 0:00:45]} d6 {[%emt 0:06:04]} 13. gxf4 {[%emt 0:01:14]} exf4 {[%emt 0:00:08]} 14. Rg1 {[%emt 0:03:51]} Bc8 {[%emt 0:20:27]} 15. Ng5 {[%emt 0:10:26]} Qe8 {[%emt 0:10:05]} 16. Ra2 {[%emt 0:10:27]} h6 {[%emt 0:01:53]} 17. h4 {[%emt 0:03:02]} Nc6 {[%emt 0:05:13]} 18. Ne6 {[%emt 0:10:24]} Bxe6 {[%emt 0:09:26]} 19. Qg2 {[%emt 0:00:07]} Rf6 {[%emt 0:02:46]} 20. h5 {[%emt 0:03:26]} Na5 {[%emt 0:00:07]} 21. d5 {[%emt 0:17:50]} Nb3 {[%emt 0:01:22]} 22. Bb2 {[%emt 0:00:01]} Nc5 {[%emt 0:01:46]} 23. Bc2 {[%emt 0:00:32]} Bf7 {[%emt 0:00:20]} 24. Ra1 {[%emt 0:01:00]} Qe5 {[%emt 0:00:28]} 25. Qg4 {[%emt 0:01:10]} Be8 {[%emt 0:00:50]} 26. Kd2 {[%emt 0:00:35]} Bd7 {[%emt 0:01:26]} 27. Qg2 {[%emt 0:00:01]} Qxh5 {[%emt 0:00:24]} 28. e5 {[%emt 0:00:01]} dxe5 {[%emt 0:00:20]} 29. Bxg6 {[%emt 0:00:11]} Rxg6 {[%emt 0:00:06]} 30. Qxg6 {[%emt 0:00:06]} Qxg6 {[%emt 0:00:06]} 31. Rxg6 {[%emt 0:00:02]} Nb3+ {[%emt 0:00:06]} 32. Ke2 {[%emt 0:00:12]} Nxa1 {[%emt 0:00:05]} 33. Bxa1 {[%emt 0:00:02]} Kf7 {[%emt 0:00:12]} 34. Rg1 {[%emt 0:00:06]} c5 {[%emt 0:01:33]} 0-1